fUST/lending_fUST_20250910
["ID","MTS","AMOUNT","RATE_DAILY","PERIOD"]
[384522183,1757449858882,-555.13,0.0001452,2]
[384522185,1757449858891,-480.0,0.0001452,2]
[384522187,1757449858900,-625.34,0.0001452,2]
[384522189,1757449858909,-480.0,0.0001452,2]
[384522191,1757449858919,-580.87,0.0001452,2]
[384522193,1757449858928,-594.72,0.0001452,2]
[384522195,1757449858937,-590.08,0.0001452,2]
[384522197,1757449858946,-480.0,0.0001452,2]
[384522199,1757449858956,-480.0,0.0001452,2]
[384522201,1757449858965,-529.25793785,0.0001452,2]
[384522203,1757449858974,-480.0,0.0001452,2]
[384522205,1757449858984,-228.59584326,0.0001452,2]
[384522207,1757449858993,-480.0,0.0001452,2]
[384522209,1757449859002,-480.0,0.0001452,2]
[384522211,1757449859011,-480.0,0.0001452,2]
[384522213,1757449859020,-480.0,0.0001452,2]
[384522215,1757449859029,-798.0,0.0001452,2]
[384522217,1757449859039,-480.0,0.0001452,2]
[384522219,1757449859048,-480.0,0.0001452,2]
[384522221,1757449859057,-480.0,0.0001452,2]
[384522223,1757449859066,-480.0,0.0001452,2]
[384522224,1757449859075,-480.0,0.0001452,2]
[384522225,1757449859084,-480.0,0.0001452,2]
[384522226,1757449859094,-510.04,0.0001452,2]
[384522227,1757449859103,-480.0,0.0001452,2]
[384522228,1757449859111,-480.0,0.0001452,2]
[384522229,1757449859120,-480.0,0.0001452,2]
[384522230,1757449859129,-480.0,0.0001452,2]
[384522231,1757449859138,-480.0,0.0001452,2]
[384522232,1757449859147,-480.0,0.0001452,2]
[384522233,1757449859156,-480.0,0.0001452,2]
[384522234,1757449859166,-480.0,0.0001452,2]
[384522235,1757449859174,-480.0,0.0001452,2]
[384522236,1757449859184,-480.0,0.0001452,2]
[384522237,1757449859193,-480.0,0.0001452,2]
[384522238,1757449859203,-480.0,0.0001452,2]
[384522239,1757449859212,-480.0,0.0001452,2]
[384522240,1757449859221,-480.0,0.0001452,2]
[384522242,1757449859231,-480.0,0.0001452,2]
[384522244,1757449859240,-480.0,0.0001452,2]
[384522246,1757449859250,-480.0,0.0001452,2]
[384522248,1757449859259,-480.0,0.0001452,2]
[384522250,1757449859268,-480.0,0.0001452,2]
[384522252,1757449859277,-1358.13,0.0001452,2]
[384522254,1757449859287,-7610.56,0.0001452,2]
[384522256,1757449859298,-480.0,0.0001452,2]
[384522258,1757449859307,-480.0,0.0001452,2]
[384522260,1757449859317,-480.0,0.0001452,2]
[384522262,1757449859326,-480.0,0.0001452,2]
[384522264,1757449859336,-480.0,0.0001452,2]
[384522266,1757449859346,-480.0,0.0001452,2]
[384522268,1757449859355,-480.0,0.0001452,2]
[384522270,1757449859364,-616.56,0.0001452,2]
[384522272,1757449859373,-480.0,0.0001452,2]
[384522274,1757449859383,-2162.86,0.0001452,2]
[384522276,1757449859392,-719.29,0.0001452,2]
[384522278,1757449859401,-480.0,0.0001452,2]
[384522280,1757449859411,-480.0,0.0001452,2]
[384522282,1757449859420,-798.23,0.0001452,2]
[384522284,1757449859430,-480.0,0.0001452,2]
[384522286,1757449859439,-480.0,0.0001452,2]
[384522288,1757449859450,-480.0,0.0001452,2]
[384522290,1757449859459,-480.0,0.0001452,2]
[384522292,1757449859468,-480.0,0.0001452,2]
[384522294,1757449859478,-480.0,0.0001452,2]
[384522296,1757449859488,-480.0,0.0001452,2]
[384522298,1757449859497,-480.0,0.0001452,2]
[384522300,1757449859506,-1115.6,0.0001452,2]
[384522302,1757449859515,-814.84,0.0001452,2]
[384522304,1757449859525,-480.0,0.0001452,2]
[384522306,1757449859534,-4312.41,0.0001452,2]
[384522308,1757449859543,-480.0,0.0001452,2]
[384522310,1757449859552,-2540.43,0.0001452,2]
[384522312,1757449859562,-632.5,0.0001452,2]
[384522314,1757449859571,-165.27073214,0.0001452,2]
[384522316,1757449859580,-480.0,0.0001452,2]
[384522318,1757449859592,-2246.2,0.0001452,2]
[384522320,1757449859602,-480.0,0.0001452,2]
[384522322,1757449859612,-1859.97,0.0001452,2]
[384522324,1757449859621,-1543.27,0.0001452,2]
[384522326,1757449859630,-480.0,0.0001452,2]
[384522328,1757449859641,-2024.29,0.0001452,2]
[384522330,1757449859651,-480.0,0.0001452,2]
[384522332,1757449859660,-480.0,0.0001452,2]
[384522334,1757449859670,-480.0,0.0001452,2]
[384522336,1757449859679,-480.0,0.0001452,2]
[384522338,1757449859689,-480.0,0.0001452,2]
[384522340,1757449859700,-480.0,0.0001452,2]
[384522342,1757449859709,-498.41,0.0001452,2]
[384522344,1757449859718,-598.26,0.0001452,2]
[384522346,1757449859727,-480.0,0.0001452,2]
[384522348,1757449859736,-575.75,0.0001452,2]
[384522350,1757449859745,-480.0,0.0001452,2]
[384522352,1757449859754,-480.0,0.0001452,2]
[384522354,1757449859764,-17569.48,0.0001452,2]
[384522356,1757449859773,-480.0,0.0001452,2]
[384522358,1757449859782,-480.0,0.0001452,2]
[384522360,1757449859792,-480.0,0.0001452,2]
[384522362,1757449859801,-557.56,0.0001452,2]
[384522364,1757449859809,-480.0,0.0001452,2]
[384522366,1757449859819,-524.24,0.0001452,2]
[384522368,1757449859829,-480.0,0.0001452,2]
[384522370,1757449859838,-882.12,0.0001452,2]
[384522372,1757449859847,-480.0,0.0001452,2]
[384522374,1757449859856,-822.5,0.0001452,2]
[384522376,1757449859865,-792.79,0.0001452,2]
[384522378,1757449859875,-548.94659448,0.0001452,2]
[384522380,1757449859883,-480.0,0.0001452,2]
[384522382,1757449859894,-493.72,0.0001452,2]
[384522384,1757449859903,-480.0,0.0001452,2]
[384522386,1757449859912,-480.0,0.0001452,2]
[384522388,1757449859921,-650.02,0.0001452,2]
[384522390,1757449859930,-480.0,0.0001452,2]
[384522392,1757449859939,-1561.18,0.0001452,2]
[384522394,1757449859949,-2198.51,0.0001452,2]
[384522396,1757449859958,-595.05,0.0001452,2]
[384522398,1757449859967,-1554.96,0.0001452,2]
[384522400,1757449859977,-480.0,0.0001452,2]
[384522402,1757449859987,-480.0,0.0001452,2]
[384522404,1757449859996,-634.32,0.0001452,2]
[384522406,1757449860005,-480.0,0.0001452,2]
[384522408,1757449860015,-480.0,0.0001452,2]
[384522410,1757449860025,-646.8,0.0001452,2]
[384522412,1757449860035,-578.16,0.0001452,2]
[384522414,1757449860045,-480.0,0.0001452,2]
[384522416,1757449860055,-480.0,0.0001452,2]
[384522418,1757449860065,-528.51,0.0001452,2]
[384522420,1757449860075,-1002.17,0.0001452,2]
[384522422,1757449860085,-480.0,0.0001452,2]
[384522424,1757449860096,-480.0,0.0001452,2]
[384522426,1757449860106,-480.0,0.0001452,2]
[384522428,1757449860115,-480.0,0.0001452,2]
[384522430,1757449860125,-480.0,0.0001452,2]
[384522432,1757449860134,-1772.11,0.0001452,2]
[384522434,1757449860144,-480.0,0.0001452,2]
[384522437,1757449860153,-480.0,0.0001452,2]
[384522439,1757449860162,-480.0,0.0001452,2]
[384522441,1757449860172,-480.0,0.0001452,2]
[384522443,1757449860182,-1022.54,0.0001452,2]
[384522445,1757449860192,-486.87,0.0001452,2]
[384522447,1757449860202,-480.0,0.0001452,2]
[384522449,1757449860211,-480.0,0.0001452,2]
[384522451,1757449860220,-2034.54,0.0001452,2]
[384522453,1757449860229,-480.0,0.0001452,2]
[384522455,1757449860239,-480.0,0.0001452,2]
[384522457,1757449860248,-480.0,0.0001452,2]
[384522459,1757449860258,-698.54,0.0001452,2]
[384522471,1757449860267,-811.59,0.0001452,2]
[384522473,1757449860376,-480.0,0.0001452,2]
[384522476,1757449860386,-3020.48,0.0001452,2]
[384522478,1757449860397,-480.0,0.0001452,2]
[384522480,1757449860406,-500.76948217,0.00014521,2]
[384522482,1757449860415,-367.32763896,0.00014521,2]
[384522484,1757449860425,-1000.0,0.00014521,2]
[384522486,1757449860434,-500.20727492,0.00014521,2]
[384522488,1757449860443,-500.11877107,0.00014521,2]
[384522489,1757449860453,-500.1783756,0.00014521,2]
[384522492,1757449860462,-500.52215659,0.00014521,2]
[384522493,1757449860472,-1000.0,0.00014521,2]
[384522496,1757449860482,-1000.0,0.00014521,2]
[384522498,1757449860491,-500.13972366,0.00014521,2]
[384522500,1757449860500,-500.17224548,0.00014521,2]
[384522502,1757449860510,-500.29843636,0.00014521,2]
[384522504,1757449860519,-1000.0,0.00014521,2]
[384522506,1757449860529,-500.54040616,0.00014521,2]
[384522508,1757449860538,-500.19204623,0.00014521,2]
[384522510,1757449860548,-500.42689119,0.00014521,2]
[384522512,1757449860558,-1000.0,0.00014521,2]
[384522514,1757449860567,-1000.0,0.00014521,2]
[384522516,1757449860577,-11426.30648409,0.00014688,2]
[384522518,1757449860587,-2000.0,0.000147,2]
[384522520,1757449860596,-1912.6,0.000147,2]
[384522522,1757449860605,-1500.0,0.00014768,2]
[384522524,1757449860614,-1500.0,0.00014768,2]
[384522526,1757449860624,-1500.0,0.00014768,2]
[384522528,1757449860634,-1500.0,0.00014768,2]
[384522530,1757449860643,-503.47571602,0.00014768,2]
[384522532,1757449860654,-1500.0,0.00014768,2]
[384522534,1757449860664,-500.0,0.00014768,2]
[384522536,1757449860674,-500.0,0.00014768,2]
[384522538,1757449860684,-524.16643507,0.00014781,2]
[384522540,1757449860693,-500.27995286,0.00014781,2]
[384522542,1757449860704,-500.0,0.00014781,2]
[384522544,1757449860713,-500.4233675,0.00014781,2]
[384522546,1757449860723,-500.0,0.00014781,2]
[384522548,1757449860732,-1219.89,0.00014788,2]
[384522551,1757449860742,-480.0,0.00014794,2]
[384522553,1757449860752,-480.0,0.00014794,2]
[384522555,1757449860761,-480.0,0.00014794,2]
[384522557,1757449860771,-480.0,0.00014794,2]
[384522559,1757449860781,-480.0,0.00014794,2]
[384522561,1757449860790,-480.0,0.00014794,2]
[384522563,1757449860799,-228.8854151,0.00014794,2]
[384522565,1757449860809,-480.0,0.00014794,2]
[384522567,1757449860819,-480.0,0.00014794,2]
[384522569,1757449860828,-480.0,0.00014794,2]
[384522571,1757449860838,-480.0,0.00014794,2]
[384522573,1757449860847,-480.0,0.00014794,2]
[384522575,1757449860857,-625.34,0.00014794,2]
[384522577,1757449860866,-480.0,0.00014794,2]
[384522579,1757449860876,-580.87,0.00014794,2]
[384522581,1757449860885,-594.72,0.00014794,2]
[384522583,1757449860895,-590.08,0.00014794,2]
[384522585,1757449860905,-480.0,0.00014794,2]
[384522587,1757449860915,-480.0,0.00014794,2]
[384522589,1757449860924,-480.0,0.00014794,2]
[384522591,1757449860933,-480.0,0.00014794,2]
[384522593,1757449860943,-409.39498672,0.00014794,2]
[384522595,1757449860952,-539.88531689,0.00014794,2]
[384522597,1757449860961,-798.0,0.00014794,2]
[384522599,1757449860971,-161.46713333,0.00014794,2]
[384522601,1757449860980,-480.0,0.00014794,2]
[384522603,1757449860990,-480.0,0.00014794,2]
[384522605,1757449860999,-480.0,0.00014794,2]
[384522607,1757449861009,-480.0,0.00014794,2]
[384522609,1757449861018,-480.0,0.00014794,2]
[384522611,1757449861028,-510.04,0.00014794,2]
[384522613,1757449861038,-480.0,0.00014794,2]
[384522615,1757449861047,-480.0,0.00014794,2]
[384522617,1757449861057,-480.0,0.00014794,2]
[384522619,1757449861066,-480.0,0.00014794,2]
[384522621,1757449861076,-480.0,0.00014794,2]
[384522623,1757449861086,-480.0,0.00014794,2]
[384522625,1757449861096,-480.0,0.00014794,2]
[384522627,1757449861105,-480.0,0.00014794,2]
[384522629,1757449861114,-480.0,0.00014794,2]
[384522631,1757449861123,-480.0,0.00014794,2]
[384522633,1757449861133,-480.0,0.00014794,2]
[384522635,1757449861142,-480.0,0.00014794,2]
[384522637,1757449861151,-480.0,0.00014794,2]
[384522639,1757449861160,-480.0,0.00014794,2]
[384522641,1757449861170,-480.0,0.00014794,2]
[384522643,1757449861179,-1358.13,0.00014794,2]
[384522645,1757449861188,-7610.56,0.00014794,2]
[384522647,1757449861198,-480.0,0.00014794,2]
[384522649,1757449861210,-480.0,0.00014794,2]
[384522651,1757449861220,-480.0,0.00014794,2]
[384522653,1757449861229,-480.0,0.00014794,2]
[384522655,1757449861239,-480.0,0.00014794,2]
[384522657,1757449861248,-616.56,0.00014794,2]
[384522659,1757449861257,-480.0,0.00014794,2]
[384522661,1757449861267,-2162.86,0.00014794,2]
[384522663,1757449861276,-719.29,0.00014794,2]
[384522665,1757449861285,-480.0,0.00014794,2]
[384522667,1757449861294,-480.0,0.00014794,2]
[384522669,1757449861304,-798.23,0.00014794,2]
[384522671,1757449861313,-480.0,0.00014794,2]
[384522673,1757449861322,-480.0,0.00014794,2]
[384522675,1757449861331,-480.0,0.00014794,2]
[384522677,1757449861340,-480.0,0.00014794,2]
[384522679,1757449861350,-480.0,0.00014794,2]
[384522681,1757449861359,-480.0,0.00014794,2]
[384522682,1757449861368,-1115.6,0.00014794,2]
[384522684,1757449861377,-814.84,0.00014794,2]
[384522686,1757449861386,-480.0,0.00014794,2]
[384522688,1757449861395,-4312.41,0.00014794,2]
[384522690,1757449861404,-480.0,0.00014794,2]
[384522692,1757449861414,-2540.43,0.00014794,2]
[384522694,1757449861423,-632.5,0.00014794,2]
[384522696,1757449861432,-2246.2,0.00014794,2]
[384522698,1757449861442,-480.0,0.00014794,2]
[384522700,1757449861451,-1859.97,0.00014794,2]
[384522702,1757449861460,-1543.27,0.00014794,2]
[384522704,1757449861469,-480.0,0.00014794,2]
[384522706,1757449861479,-2024.29,0.00014794,2]
[384522708,1757449861488,-480.0,0.00014794,2]
[384522710,1757449861497,-166.3,0.00014794,2]
[384522712,1757449861506,-480.0,0.00014794,2]
[384522714,1757449861516,-480.0,0.00014794,2]
[384522716,1757449861525,-480.0,0.00014794,2]
[384522718,1757449861534,-498.41,0.00014794,2]
[384522720,1757449861543,-598.26,0.00014794,2]
[384522722,1757449861552,-480.0,0.00014794,2]
[384522724,1757449861562,-575.75,0.00014794,2]
[384522726,1757449861571,-387.40229641,0.00014794,2]
[384522728,1757449861580,-480.0,0.00014794,2]
[384522730,1757449861591,-17569.48,0.00014794,2]
[384522732,1757449861602,-480.0,0.00014794,2]
[384522734,1757449861611,-185.47953218,0.00014794,2]
[384522736,1757449861620,-480.0,0.00014794,2]
[384522738,1757449861629,-557.56,0.00014794,2]
[384522740,1757449861638,-191.02938076,0.00014794,2]
[384522742,1757449861648,-524.24,0.00014794,2]
[384522744,1757449861658,-480.0,0.00014794,2]
[384522746,1757449861668,-882.12,0.00014794,2]
[384522748,1757449861678,-822.5,0.00014794,2]
[384522750,1757449861687,-792.79,0.00014794,2]
[384522752,1757449861697,-480.0,0.00014794,2]
[384522754,1757449861705,-493.72,0.00014794,2]
[384522756,1757449861715,-480.0,0.00014794,2]
[384522758,1757449861723,-650.02,0.00014794,2]
[384522760,1757449861733,-480.0,0.00014794,2]
[384522762,1757449861742,-1561.18,0.00014794,2]
[384522764,1757449861751,-2198.51,0.00014794,2]
[384522766,1757449861761,-595.05,0.00014794,2]
[384522768,1757449861771,-1554.96,0.00014794,2]
[384522770,1757449861780,-480.0,0.00014794,2]
[384522772,1757449861788,-480.0,0.00014794,2]
[384522774,1757449861798,-634.32,0.00014794,2]
[384522775,1757449861807,-480.0,0.00014794,2]
[384522777,1757449861818,-480.0,0.00014794,2]
[384522778,1757449861827,-646.8,0.00014794,2]
[384522779,1757449861837,-578.16,0.00014794,2]
[384522780,1757449861846,-480.0,0.00014794,2]
[384522781,1757449861855,-480.0,0.00014794,2]
[384522782,1757449861864,-528.51,0.00014794,2]
[384522783,1757449861874,-1002.17,0.00014794,2]
[384522784,1757449861883,-480.0,0.00014794,2]
[384522785,1757449861892,-480.0,0.00014794,2]
[384522786,1757449861901,-480.0,0.00014794,2]
[384522787,1757449861911,-480.0,0.00014794,2]
[384522788,1757449861920,-480.0,0.00014794,2]
[384522789,1757449861929,-1772.11,0.00014794,2]
[384522790,1757449861939,-480.0,0.00014794,2]
[384522791,1757449861949,-480.0,0.00014794,2]
[384522792,1757449861957,-480.0,0.00014794,2]
[384522793,1757449861967,-1022.54,0.00014794,2]
[384522794,1757449861975,-486.87,0.00014794,2]
[384522795,1757449861985,-480.0,0.00014794,2]
[384522796,1757449861994,-480.0,0.00014794,2]
[384522797,1757449862003,-2034.54,0.00014794,2]
[384522799,1757449862012,-480.0,0.00014794,2]
[384522801,1757449862022,-480.0,0.00014794,2]
[384522803,1757449862031,-480.0,0.00014794,2]
[384522805,1757449862040,-698.54,0.00014794,2]
[384522807,1757449862049,-811.59,0.00014794,2]
[384522809,1757449862059,-480.0,0.00014794,2]
[384522810,1757449862068,-3020.48,0.00014794,2]
[384522813,1757449862078,-160.0,0.0001481,2]
[384522815,1757449862087,-1000.0,0.00014821,2]
[384522816,1757449862096,-160.0,0.00015,2]
[384522818,1757449862106,-1219.89,0.00015062,2]
[384522820,1757449862116,-480.0,0.00015068,2]
[384522822,1757449862126,-480.0,0.00015068,2]
[384522824,1757449862136,-480.0,0.00015068,2]
[384522826,1757449862146,-480.0,0.00015068,2]
[384522828,1757449862156,-480.0,0.00015068,2]
[384522830,1757449862166,-480.0,0.00015068,2]
[384522832,1757449862175,-480.0,0.00015068,2]
[384522834,1757449862184,-463.70404932,0.00015068,2]
[384522836,1757449862194,-625.34,0.00015068,2]
[384522838,1757449862204,-480.0,0.00015068,2]
[384522840,1757449862214,-580.87,0.00015068,2]
[384522852,1757449862224,-594.72,0.00015068,2]
[384522854,1757449862326,-590.08,0.00015068,2]
[384522856,1757449862338,-480.0,0.00015068,2]
[384522858,1757449862347,-480.0,0.00015068,2]
[384522860,1757449862356,-480.0,0.00015068,2]
[384522862,1757449862366,-480.0,0.00015068,2]
[384522864,1757449862375,-798.0,0.00015068,2]
[384522866,1757449862385,-480.0,0.00015068,2]
[384522868,1757449862394,-480.0,0.00015068,2]
[384522870,1757449862403,-480.0,0.00015068,2]
[384522872,1757449862413,-480.0,0.00015068,2]
[384522874,1757449862422,-480.0,0.00015068,2]
[384522876,1757449862431,-510.04,0.00015068,2]
[384522878,1757449862441,-220.77,0.00015068,2]
[384522880,1757449862450,-480.0,0.00015068,2]
[384522882,1757449862459,-480.0,0.00015068,2]
[384522884,1757449862468,-480.0,0.00015068,2]
[384522886,1757449862478,-480.0,0.00015068,2]
[384522888,1757449862488,-480.0,0.00015068,2]
[384522890,1757449862498,-480.0,0.00015068,2]
[384522892,1757449862508,-607.54,0.00015068,2]
[384522894,1757449862519,-480.0,0.00015068,2]
[384522896,1757449862528,-240.99,0.00015068,2]
[384522898,1757449862538,-241.88800298,0.00015068,2]
[384522900,1757449862547,-480.0,0.00015068,2]
[384522902,1757449862556,-1358.13,0.00015068,2]
[384522904,1757449862566,-7610.56,0.00015068,2]
[384522906,1757449862575,-480.0,0.00015068,2]
[384522908,1757449862584,-311.24267845,0.00015068,2]
[384522910,1757449862593,-480.0,0.00015068,2]
[384522912,1757449862602,-616.56,0.00015068,2]
[384522914,1757449862611,-480.0,0.00015068,2]
[384522916,1757449862621,-2162.86,0.00015068,2]
[384522918,1757449862632,-719.29,0.00015068,2]
[384522920,1757449862643,-512.62,0.00015068,2]
[384522923,1757449862653,-409.22,0.00015068,2]
[384522925,1757449862664,-798.23,0.00015068,2]
[384522927,1757449862675,-480.0,0.00015068,2]
[384522929,1757449862684,-480.0,0.00015068,2]
[384522931,1757449862693,-480.0,0.00015068,2]
[384522933,1757449862703,-480.0,0.00015068,2]
[384522935,1757449862713,-480.0,0.00015068,2]
[384522937,1757449862722,-480.0,0.00015068,2]
[384522939,1757449862735,-1115.6,0.00015068,2]
[384522941,1757449862748,-814.84,0.00015068,2]
[384522943,1757449862757,-480.0,0.00015068,2]
[384522945,1757449862767,-4312.41,0.00015068,2]
[384522947,1757449862775,-480.0,0.00015068,2]
[384522949,1757449862785,-2540.43,0.00015068,2]
[384522951,1757449862794,-632.5,0.00015068,2]
[384522953,1757449862803,-2246.2,0.00015068,2]
[384522955,1757449862813,-480.0,0.00015068,2]
[384522957,1757449862823,-1859.97,0.00015068,2]
[384522959,1757449862832,-1543.27,0.00015068,2]
[384522961,1757449862842,-480.0,0.00015068,2]
[384522963,1757449862851,-2024.29,0.00015068,2]
[384522965,1757449862861,-480.0,0.00015068,2]
[384522967,1757449862870,-480.0,0.00015068,2]
[384522969,1757449862880,-515.84,0.00015068,2]
[384522971,1757449862890,-480.0,0.00015068,2]
[384522973,1757449862899,-498.41,0.00015068,2]
[384522975,1757449862909,-598.26,0.00015068,2]
[384522977,1757449862919,-480.0,0.00015068,2]
[384522979,1757449862930,-575.75,0.00015068,2]
[384522981,1757449862940,-480.0,0.00015068,2]
[384522983,1757449862951,-17569.48,0.00015068,2]
[384522985,1757449862960,-480.0,0.00015068,2]
[384522987,1757449862970,-557.56,0.00015068,2]
[384522989,1757449862980,-524.24,0.00015068,2]
[384522991,1757449862990,-480.0,0.00015068,2]
[384522993,1757449862999,-882.12,0.00015068,2]
[384522995,1757449863009,-822.5,0.00015068,2]
[384522997,1757449863019,-792.79,0.00015068,2]
[384522999,1757449863028,-480.0,0.00015068,2]
[384523001,1757449863039,-493.72,0.00015068,2]
[384523003,1757449863049,-380.32754381,0.00015068,2]
[384523005,1757449863060,-650.02,0.00015068,2]
[384523007,1757449863070,-240.90792521,0.00015068,2]
[384523009,1757449863080,-1561.18,0.00015068,2]
[384523011,1757449863090,-2198.51,0.00015068,2]
[384523013,1757449863100,-595.05,0.00015068,2]
[384523015,1757449863111,-1554.96,0.00015068,2]
[384523017,1757449863121,-480.0,0.00015068,2]
[384523019,1757449863131,-480.0,0.00015068,2]
[384523021,1757449863141,-634.32,0.00015068,2]
[384523023,1757449863151,-480.0,0.00015068,2]
[384523025,1757449863161,-646.8,0.00015068,2]
[384523027,1757449863171,-578.16,0.00015068,2]
[384523029,1757449863180,-480.0,0.00015068,2]
[384523031,1757449863190,-480.0,0.00015068,2]
[384523033,1757449863200,-528.51,0.00015068,2]
[384523035,1757449863211,-1002.17,0.00015068,2]
[384523037,1757449863223,-480.0,0.00015068,2]
[384523039,1757449863233,-480.0,0.00015068,2]
[384523041,1757449863243,-350.36539022,0.00015068,2]
[384523043,1757449863253,-1772.11,0.00015068,2]
[384523045,1757449863264,-480.0,0.00015068,2]
[384523047,1757449863274,-480.0,0.00015068,2]
[384523049,1757449863284,-480.0,0.00015068,2]
[384523051,1757449863293,-1022.54,0.00015068,2]
[384523053,1757449863303,-486.87,0.00015068,2]
[384523055,1757449863313,-480.0,0.00015068,2]
[384523057,1757449863323,-480.0,0.00015068,2]
[384523059,1757449863332,-2034.54,0.00015068,2]
[384523061,1757449863349,-480.0,0.00015068,2]
[384523063,1757449863361,-480.0,0.00015068,2]
[384523065,1757449863372,-698.54,0.00015068,2]
[384523067,1757449863383,-811.59,0.00015068,2]
[384523069,1757449863393,-480.0,0.00015068,2]
[384523071,1757449863403,-3020.48,0.00015068,2]
[384523073,1757449863413,-1500.0,0.00015068,2]
[384523075,1757449863423,-1500.0,0.00015068,2]
[384523077,1757449863434,-1500.0,0.00015068,2]
[384523079,1757449863444,-1500.0,0.00015068,2]
[384523081,1757449863454,-734.6510052,0.00015068,2]
[384523083,1757449863463,-1500.0,0.00015068,2]
[384523084,1757449863473,-410.522069,0.00015068,2]
[384523085,1757449863483,-500.0,0.00015068,2]
[384523086,1757449863493,-500.0,0.00015135,2]
[384523087,1757449863503,-719.48134674,0.00015202,7]
[384523088,1757449863512,-244.75638401,0.00015227,2]
[384523089,1757449863521,-7601.81708884,0.00015268,2]
[384523090,1757449863531,-160.0,0.00015307,3]
[384523091,1757449863540,-500.0,0.00015316,2]
[384523092,1757449863550,-500.0,0.00015316,2]
[384523093,1757449863559,-505.73277401,0.00015316,2]
[384523094,1757449863569,-2000.0,0.00015316,2]
[384523095,1757449863578,-500.0,0.00015316,2]
[384523096,1757449863589,-500.35433187,0.00015329,2]
[384523097,1757449863601,-1000.0,0.00015329,2]
[384523098,1757449863611,-1219.89,0.00015336,2]
[384523099,1757449863621,-964.53108309,0.00015342,2]
[384523100,1757449863631,-480.0,0.00015342,2]
[384523101,1757449863642,-480.0,0.00015342,2]
[384523102,1757449863653,-480.0,0.00015342,2]
[384523103,1757449863663,-480.0,0.00015342,2]
[384523104,1757449863673,-625.34,0.00015342,2]
[384523105,1757449863682,-480.0,0.00015342,2]
[384523106,1757449863692,-580.87,0.00015342,2]
[384523107,1757449863702,-594.72,0.00015342,2]
[384523108,1757449863711,-590.08,0.00015342,2]
[384523109,1757449863721,-480.0,0.00015342,2]
[384523110,1757449863731,-480.0,0.00015342,2]
[384523111,1757449863741,-480.0,0.00015342,2]
[384523112,1757449863751,-324.61271457,0.00015342,2]
[384523113,1757449863761,-798.0,0.00015342,2]
[384523114,1757449863771,-480.0,0.00015342,2]
[384523115,1757449863780,-480.0,0.00015342,2]
[384523116,1757449863790,-480.0,0.00015342,2]
[384523117,1757449863799,-480.0,0.00015342,2]
[384523118,1757449863809,-510.04,0.00015342,2]
[384523119,1757449863818,-480.0,0.00015342,2]
[384523120,1757449863827,-480.0,0.00015342,2]
[384523121,1757449863836,-480.0,0.00015342,2]
[384523122,1757449863846,-480.0,0.00015342,2]
[384523123,1757449863856,-480.0,0.00015342,2]
[384523124,1757449863866,-480.0,0.00015342,2]